bitfinex/quotes_SOLUSD_20230104
["timestamp","ask_amount","ask_price","bid_price","bid_amount"]
[1672819869526,501.8857,13.98,13.967,20.0]
[1672819871408,415.82491793,13.99,13.967,20.0]
[1672819871409,53.66,13.989,13.967,20.0]
[1672819871618,166.944,13.989,13.968,30.0]
[1672819871829,166.944,13.989,13.969,20.0]
[1672819872033,166.944,13.989,13.969,64.19197466]
[1672819872562,166.944,13.989,13.969,94.19197466]
[1672819873408,166.944,13.989,13.969,115.57938246]
[1672819873931,166.944,13.989,13.969,94.19197466]
[1672819874129,53.7,13.98,13.969,94.19197466]
[1672819874556,53.67,13.988,13.969,50.0]
[1672819874974,53.7,13.98,13.97,21.3874078]
[1672819875182,53.67,13.988,13.971,20.0]
[1672819875401,53.67,13.988,13.971,50.0]
[1672819875607,53.67,13.988,13.972,21.3874078]
[1672819875821,53.67,13.988,13.973,20.0]
[1672819876023,207.75693159,13.981,13.973,20.0]
[1672819876242,207.75693159,13.981,13.974,21.3874078]
[1672819876561,207.75693159,13.981,13.975,50.17197466]
[1672819876758,207.75693159,13.981,13.975,101.2988851]
[1672819876964,207.75693159,13.981,13.976,21.3874078]
[1672819877179,207.75693159,13.981,13.977,20.0]
[1672819877390,207.75693159,13.981,13.977,156.86153285]
[1672819877591,207.75693159,13.981,13.978,162.84227398]
[1672819877818,120.20913159,13.981,13.978,162.84227398]
[1672819878013,120.20913159,13.981,13.979,162.84227398]
[1672819878222,3.159e-05,13.981,13.979,182.84227398]
[1672819878554,3.159e-05,13.981,13.98,182.84227398]
[1672819878761,3.159e-05,13.981,13.98,162.84227398]
[1672819878975,3.159e-05,13.981,13.98,182.84227398]
[1672819879188,329.72485257,13.994,13.98,182.84227398]
[1672819879500,1634.10387321,14.71,13.98,182.84227398]
[1672819879501,327.64580856,13.999,13.981,233.56303627]
[1672819879715,327.64580856,13.999,13.981,345.52493627]
[1672819879907,327.64580856,13.999,13.982,171.80771971]
[1672819880117,327.64580856,13.999,13.983,57.6198248]
[1672819880327,327.64580856,13.999,13.983,259.42754451]
[1672819880656,327.64580856,13.999,13.984,171.80771971]
[1672819880856,327.64580856,13.999,13.985,57.6198248]
[1672819881096,327.64580856,13.999,13.986,20.0]
[1672819881308,327.64580856,13.999,13.987,57.6198248]
[1672819881528,322.78451657,13.999,13.988,20.0]
[1672819881723,322.78451657,13.999,13.99,4.30842953]
[1672819881929,322.78451657,13.999,13.991,57.6198248]
[1672819882156,323.00957727,13.997,13.989,113.72722036]
[1672819882368,323.99100293,13.998,13.991,56.62739556]
[1672819883000,323.99100293,13.998,13.992,21.3874078]
[1672819883198,329.98896873,13.999,13.988,60.36997098]
[1672819883400,329.98896873,13.999,13.989,30.0]
[1672819883930,383.60896873,13.999,13.99,21.3874078]
[1672819884141,383.60896873,13.999,13.989,30.0]
[1672819884772,320.80595636,13.997,13.989,30.0]
[1672819884999,374.43595636,13.997,13.989,30.0]
[1672819885531,320.80595636,13.997,13.989,30.0]
[1672819885717,320.80595636,13.997,13.99,21.3874078]
[1672819886343,320.80595636,13.997,13.991,20.0]
[1672819888783,320.80595636,13.997,13.992,30.0]
[1672819888993,329.39820343,13.995,13.992,30.0]
[1672819889206,323.39304469,13.996,13.991,20.0]
[1672819889731,320.80595636,13.997,13.991,20.0]
[1672819889939,320.80595636,13.997,13.981,128.9619]
[1672819890149,320.80595636,13.997,13.986,21.3874078]
[1672819890340,374.43595636,13.997,13.986,21.3874078]
[1672819890763,374.43595636,13.997,13.984,30.0]
[1672819891078,374.43595636,13.997,13.985,20.0]
[1672819891294,374.43595636,13.997,13.986,30.0]
[1672819892249,53.63,13.997,13.981,111.9619]
[1672819892458,53.63,13.997,13.984,21.3874078]
[1672819892662,365.63,13.997,13.984,21.3874078]
[1672819892883,365.63,13.997,13.982,30.0]
[1672819893206,365.63,13.997,13.983,20.0]
[1672819894027,53.63,13.997,13.983,20.0]
[1672819894254,53.63,13.998,13.983,20.0]
[1672819894469,116.08,13.99,13.983,20.0]
[1672819894657,53.66,13.989,13.965,119.8619]
[1672819894986,23.28,13.98,13.965,119.8619]
[1672819895199,23.28,13.98,13.962,21.3874078]
[1672819895200,53.7,13.979,13.966,30.0]
[1672819896233,53.7,13.979,13.967,20.0]
[1672819896442,53.7,13.979,13.969,30.0]
[1672819896665,53.7,13.979,13.97,20.0]
[1672819896881,53.67,13.987,13.97,20.0]
[1672819897406,53.67,13.987,13.971,30.0]
[1672819897592,53.67,13.987,13.972,20.0]
[1672819898447,53.67,13.987,13.973,30.0]
[1672819898658,312.0,13.985,13.974,20.0]
[1672819898873,53.68,13.984,13.974,20.0]
[1672819900750,53.68,13.984,13.975,30.0]
[1672819901291,53.68,13.984,13.976,20.0]
[1672819902030,53.67,13.987,13.976,20.0]
[1672819902445,53.66,13.989,13.976,20.0]
[1672819902763,53.66,13.989,13.977,30.0]
[1672819902961,53.63,13.998,13.977,30.0]
[1672819903167,53.63,13.998,13.978,20.0]
[1672819903800,53.63,13.998,13.978,50.0]
[1672819904847,365.63,13.998,13.978,50.0]
[1672819905385,340.63,13.998,13.98,116.38]
[1672819905593,312.0,13.998,13.982,30.0]
[1672819905808,162.5643,13.999,13.983,31.8]
[1672819906019,162.5643,13.999,13.984,39.05368936]
[1672819906464,162.5643,13.999,13.983,31.8]
[1672819906773,162.5643,13.999,13.984,30.0]
[1672819906981,108.9443,13.999,13.985,36.86]
[1672819907171,1.0,14.0,13.986,20.0]
[1672819907610,1.0,14.0,13.986,50.0]
[1672819908892,312.0,13.997,13.986,50.0]
[1672819911184,1.0,14.0,13.986,50.0]
[1672819911595,1.0,14.0,13.987,38.49]
[1672819911809,1.0,14.0,13.988,20.0]
[1672819912762,1.0,14.0,13.988,50.0]
[1672819912955,28.59,14.007,13.99,23.28]
[1672819913165,112.961,14.008,13.992,42.32445759]
[1672819913487,112.961,14.008,13.993,53.65]
[1672819913701,112.961,14.008,13.994,38.55363098]
[1672819913911,112.961,14.008,13.993,30.0]
[1672819914129,312.0,14.007,13.994,20.0]
[1672819914876,312.0,14.007,13.994,50.0]
[1672819915811,365.59,14.007,13.994,50.0]
[1672819916205,312.0,14.007,13.994,50.0]
[1672819917165,365.59,14.007,13.994,50.0]
[1672819918541,312.0,14.007,13.994,50.0]
[1672819924002,365.59,14.007,13.994,50.0]
[1672819925051,312.0,14.007,13.994,50.0]
[1672819927695,112.961,14.008,13.994,50.0]
[1672819928009,112.961,14.008,13.995,42.73059969]
[1672819928207,112.961,14.008,13.996,20.0]
[1672819929152,112.961,14.008,13.996,50.0]
[1672819930747,424.961,14.008,13.996,50.0]
[1672819931887,287.0,14.008,13.996,50.0]
[1672819932097,113.6366,14.018,13.996,50.0]
[1672819932308,312.0,14.014,13.997,111.4125]
[1672819932518,53.57,14.013,13.997,141.4125]
[1672819933262,53.57,14.013,13.998,20.0]
[1672819933478,53.55,14.017,13.998,50.0]
[1672819934844,28.55,14.017,14.0,23.28]
[1672819935181,28.55,14.017,14.001,45.58232851]
[1672819935387,113.6366,14.018,14.001,120.58973631]
[1672819936008,113.6366,14.018,14.001,150.58973631]
[1672819936325,113.6366,14.018,14.003,45.58232851]
[1672819936538,113.6366,14.018,14.004,20.0]
[1672819937067,53.55,14.017,14.004,30.0]
[1672819938102,53.55,14.017,13.999,30.0]
[1672819938631,113.6366,14.018,14.0,191.0874078]
[1672819938964,113.6366,14.018,14.001,21.3874078]
[1672819939181,113.6366,14.018,14.003,30.0]
[1672819939489,53.55,14.017,14.003,30.0]
[1672819939889,107.25113118,14.017,14.003,30.0]
[1672819940226,53.55,14.017,14.003,30.0]
[1672819941154,53.55,14.017,14.004,20.0]
[1672819941370,53.55,14.017,14.004,71.3874078]
[1672819941569,113.6366,14.018,14.004,50.0]
[1672819941570,312.0,14.014,14.004,50.0]
[1672819942512,113.6366,14.018,14.004,50.0]
[1672819943567,53.55,14.017,14.004,50.0]
[1672819944311,53.55,14.017,14.004,30.0]
[1672819945145,53.55,14.017,14.005,21.3874078]
[1672819945560,53.55,14.017,14.005,74.9874078]
[1672819945774,116.28,14.03,14.006,20.0]
[1672819945991,53.51,14.029,14.007,53.59]
[1672819946203,53.51,14.029,14.008,20.0]
[1672819946626,117.246,14.028,14.008,41.3874078]
[1672819946832,53.52,14.027,14.009,21.3874078]
[1672819947041,53.52,14.027,14.01,20.0]
[1672819947467,53.52,14.027,14.011,21.3874078]
[1672819947675,53.52,14.027,14.012,20.0]
[1672819948100,53.52,14.027,14.013,21.3874078]
[1672819948321,23.25,14.02,14.013,21.3874078]
[1672819948514,335.25,14.02,14.013,21.3874078]
[1672819948720,335.25,14.02,14.014,20.0]
[1672819949457,335.25,14.02,14.014,41.3874078]
[1672819949882,335.25,14.02,14.014,20.0]
[1672819950089,335.25,14.02,14.012,21.3874078]
[1672819950315,335.25,14.02,14.013,20.0]
[1672819950712,335.25,14.02,14.014,21.3874078]
[1672819950925,23.25,14.02,14.014,21.3874078]
[1672819951135,23.25,14.02,14.015,20.0]
[1672819951366,53.52,14.027,14.015,20.0]
[1672819951893,53.52,14.027,14.015,41.3874078]
[1672819952103,53.52,14.027,14.015,20.0]
[1672819952313,53.52,14.027,14.01,21.3874078]
[1672819952504,23.28,14.02,14.011,50.0]
[1672819952715,53.55,14.019,14.009,20.0]
[1672819953160,53.55,14.019,13.993,53.65]
[1672819953464,53.55,14.019,14.007,30.0]
[1672819953875,312.0,14.015,14.007,30.0]
[1672819954094,312.0,14.015,14.008,20.0]
[1672819954515,312.0,14.015,14.008,21.3874078]
[1672819954928,312.0,14.015,13.995,53.64]
[1672819955128,163.7842,14.019,13.997,30.0]
[1672819955129,23.28,14.01,13.997,30.0]
[1672819955458,53.55,14.017,13.998,21.3874078]
[1672819956087,107.08354411,14.017,13.998,21.3874078]
[1672819956824,53.55,14.017,13.998,21.3874078]
[1672819957022,53.55,14.018,14.0,23.28]
[1672819957232,53.55,14.018,13.998,21.3874078]
[1672819957233,53.55,14.018,14.001,20.0]
[1672819957442,53.55,14.018,14.001,21.3874078]
[1672819957653,53.55,14.018,14.002,41.3874078]
[1672819957885,53.55,14.018,14.002,21.3874078]
[1672819958095,53.55,14.018,14.003,41.3874078]
[1672819958285,53.55,14.018,14.003,21.3874078]
[1672819958499,53.55,14.018,14.004,41.3874078]
[1672819958706,312.0,14.008,14.004,21.3874078]
[1672819959026,312.0,14.008,14.005,21.3874078]
[1672819959441,312.0,14.008,14.006,20.0]
[1672819959961,312.0,14.008,14.007,21.3874078]
[1672819960178,312.0,14.008,14.007,41.3874078]
[1672819960393,53.55,14.018,14.001,95.35856397]
[1672819960703,110.2342,14.019,14.004,21.3874078]
[1672819960915,110.2342,14.019,14.005,53.6]
[1672819961329,110.2342,14.019,14.004,21.3874078]
[1672819961771,53.55,14.018,14.002,71.73856397]
[1672819961967,53.55,14.018,14.002,30.0]
[1672819962181,53.55,14.018,14.003,20.0]
[1672819962389,53.55,14.018,14.002,30.0]
[1672819963244,53.55,14.018,13.999,21.3874078]
[1672819963565,312.0,14.007,14.0,30.0]
[1672819964188,312.0,14.007,14.001,20.0]
[1672819966067,312.0,14.007,13.985,104.21372628]
[1672819966068,23.26,14.01,14.002,20.0]
[1672819966275,53.59,14.009,13.991,53.65]
[1672819966496,53.59,14.009,13.995,30.0]
[1672819967459,53.59,14.009,13.982,53.69]
[1672819967642,53.59,14.009,13.991,21.3874078]
[1672819967852,100.0,14.0,13.991,21.3874078]
[1672819968064,100.0,14.0,13.995,20.0]
[1672819968487,100.0,14.0,13.982,53.69]
[1672819968703,123.28,14.0,13.982,53.69]
[1672819968906,312.0,13.995,13.98,23.33]
[1672819969118,312.0,13.995,13.981,53.69]
[1672819970055,312.0,13.995,13.994,134.753]
[1672819970258,53.62,13.999,13.994,114.753]
[1672819972590,53.62,13.999,13.995,20.0]
[1672819973224,312.0,13.996,13.995,20.0]
[1672819979527,100.0,14.0,13.995,20.0]
[1672819980386,53.55,14.018,13.995,20.0]
[1672819980590,53.55,14.018,13.996,45.74]
[1672819980801,53.55,14.018,13.997,20.0]
[1672819981011,53.55,14.018,13.998,47.71]
[1672819981243,53.55,14.018,13.999,20.0]
[1672819981943,53.55,14.018,13.995,49.19]
[1672819981944,53.55,14.018,13.996,20.0]
[1672819982491,312.0,14.003,13.996,20.0]
[1672819983217,312.0,14.003,13.997,30.0]
[1672819983428,312.0,14.003,13.998,53.2]
[1672819983630,53.55,14.018,13.999,20.0]
[1672819983844,53.55,14.018,14.0,53.62]
[1672819984072,53.55,14.018,14.001,20.0]
[1672819984699,53.55,14.018,13.999,20.0]
[1672819985004,53.55,14.018,14.0,53.62]
[1672819985224,53.55,14.018,14.001,20.0]
[1672819986154,53.55,14.018,13.999,20.0]
[1672819986363,53.55,14.018,13.998,73.63]
[1672819986792,312.0,14.007,13.998,73.63]
[1672819987211,312.0,14.007,13.999,30.0]
[1672819987622,312.0,14.007,14.0,20.0]
[1672819987843,53.55,14.018,14.0,20.0]
[1672819990885,312.0,14.008,14.0,43.28]
[1672819991106,225.94,14.008,14.002,30.0]
[1672819991306,225.94,14.008,14.003,53.61]
[1672819991515,225.94,14.008,14.004,20.0]
[1672819991720,53.51,14.029,14.005,53.6]
[1672819991937,53.51,14.029,14.006,59.61258284]
[1672819993299,53.55,14.018,14.006,20.0]
[1672819993513,53.55,14.018,14.003,20.0]
[1672819994177,53.55,14.018,14.004,30.0]
[1672819994785,312.0,14.011,13.992,50.98914843]
[1672819994999,53.58,14.01,13.992,50.98914843]
[1672819995205,53.58,14.01,13.995,30.0]
[1672819995956,53.58,14.01,13.996,20.0]
[1672819996273,53.58,14.01,13.997,30.0]
[1672819996676,53.58,14.01,13.998,20.0]
[1672819996888,53.55,14.018,13.998,20.0]
[1672819999110,20.67,14.01,13.998,20.0]
[1672819999323,53.59,14.009,13.998,20.0]
[1672819999742,312.0,13.999,13.995,20.0]
[1672820000274,312.0,13.999,13.98,20.66]
[1672820000459,312.0,13.999,13.99,50.98914843]
[1672820000676,53.59,14.009,13.99,50.98914843]
[1672820001613,53.59,14.009,13.995,20.0]
[1672820003727,312.0,13.996,13.995,20.0]
[1672820006676,53.55,14.018,13.995,20.0]
[1672820009616,312.0,13.999,13.995,20.0]
[1672820012772,312.0,13.999,13.995,68.13196989]
[1672820013192,312.0,13.999,13.995,61.29796989]
[1672820013403,53.55,14.018,13.995,61.29796989]
[1672820013936,53.55,14.018,13.995,91.29796989]
[1672820015291,53.55,14.018,13.995,98.56896989]
[1672820016252,53.55,14.018,13.995,91.29796989]
[1672820016440,312.0,14.008,13.995,91.29796989]
[1672820017301,312.0,14.008,14.0,23.16]
[1672820017702,312.0,14.008,14.001,20.0]
[1672820020572,312.0,14.008,14.002,30.0]
[1672820021080,312.0,14.008,14.003,20.0]
[1672820023068,312.0,14.008,14.003,61.29796989]
[1672820025381,53.55,14.018,14.003,61.29796989]
[1672820026130,53.55,14.018,14.004,72.95258559]
[1672820026531,53.55,14.018,14.006,47.52161908]
[1672820026745,53.55,14.018,14.008,47.52161908]
[1672820026955,53.55,14.018,14.01,47.52161908]
[1672820027178,53.55,14.018,14.012,47.52161908]
[1672820027386,53.55,14.018,14.014,47.52161908]
[1672820027601,53.55,14.018,14.013,20.0]
[1672820027802,53.55,14.018,13.99,92.72]
[1672820027803,53.55,14.018,13.996,29.25]
[1672820028002,53.55,14.018,14.001,41.29796989]
[1672820028438,312.0,14.006,13.995,21.3874078]
[1672820028636,312.0,14.006,13.991,29.26]
[1672820028637,312.0,14.006,13.997,30.0]
[1672820029689,312.0,14.006,13.997,71.29796989]
[1672820030338,312.0,14.006,13.997,41.29796989]
[1672820030527,312.0,14.006,13.998,41.3874078]
[1672820030738,312.0,14.006,13.998,20.0]
[1672820030948,312.0,14.006,13.999,41.29796989]
[1672820031160,312.0,14.006,14.0,20.0]
[1672820032754,312.0,14.006,14.0,61.29796989]
[1672820033484,53.55,14.018,14.0,61.29796989]
[1672820035478,53.55,14.018,14.0,20.0]
[1672820035897,53.55,14.018,14.0,82.68537769]
[1672820036223,53.55,14.018,14.0,61.29796989]
[1672820036651,312.0,14.006,14.0,61.29796989]
[1672820037057,312.0,14.006,14.0,82.68537769]
[1672820038012,312.0,14.006,14.0,61.29796989]
[1672820039272,312.0,14.006,14.0,82.68537769]
[1672820039479,312.0,14.006,14.0,105.86537769]
[1672820039697,312.0,14.006,14.0,82.68537769]
[1672820039909,312.0,14.006,14.001,30.0]
[1672820040100,312.0,14.006,14.002,20.0]
[1672820041581,312.0,14.006,14.002,41.29796989]
[1672820041801,312.0,14.006,14.003,20.0]
[1672820045776,53.6,14.005,14.003,20.0]
[1672820046107,53.6,14.005,13.995,20.0]
[1672820046318,53.55,14.018,13.997,30.0]
[1672820046761,53.55,14.018,13.998,20.0]
[1672820047187,53.55,14.018,13.995,61.29796989]
[1672820047584,53.55,14.018,13.995,41.29796989]
[1672820047788,53.55,14.018,13.99,23.23]
[1672820048008,53.55,14.018,13.995,30.0]
[1672820048646,53.55,14.018,13.99,64.52796989]
[1672820048857,312.0,14.003,13.996,41.29796989]
[1672820049067,312.0,14.003,13.997,20.0]
[1672820049272,312.0,14.003,13.996,41.3874078]
[1672820049591,312.0,14.003,13.996,82.68537769]
[1672820050210,312.0,14.003,13.996,61.29796989]
[1672820051164,312.0,14.003,13.997,30.0]
[1672820051577,312.0,14.003,13.998,20.0]
[1672820054945,53.55,14.018,13.998,20.0]
[1672820055463,23.18,14.01,13.998,20.0]
[1672820055679,23.18,14.01,13.994,114.753]
[1672820055680,53.59,14.009,13.995,20.0]
[1672820055888,53.59,14.009,13.996,30.0]
[1672820056089,53.59,14.009,13.995,20.0]
[1672820056301,53.59,14.009,13.994,114.753]
[1672820057679,53.59,14.009,13.995,20.0]
[1672820057878,312.0,14.0,13.995,20.0]
[1672820058937,312.0,14.0,13.994,114.753]
[1672820058938,53.59,14.009,13.994,114.753]
[1672820060194,53.59,14.009,13.995,20.0]
[1672820061449,53.59,14.009,13.994,114.753]
[1672820062097,312.0,13.995,13.994,114.753]
[1672820063261,312.0,13.995,13.994,134.753]
[1672820067459,304.4115519,13.995,13.994,134.753]
[1672820074924,53.64,13.995,13.994,134.753]
[1672820075143,53.62,13.999,13.994,134.753]
[1672820075665,53.62,13.999,13.994,114.753]
[1672820076498,14.87806966,13.998,13.994,114.753]
[1672820076713,53.63,13.997,13.994,114.753]
[1672820076914,14.87806966,13.996,13.994,114.753]
[1672820077238,53.64,13.995,13.994,114.753]
[1672820077435,14.87806966,13.998,13.994,114.753]
[1672820077641,53.63,13.997,13.994,114.753]
[1672820077851,312.0,13.995,13.994,114.753]
[1672820078083,385.19239814,13.995,13.994,114.753]
[1672820078276,385.19239814,13.995,13.994,134.753]
[1672820081123,365.64,13.995,13.994,134.753]
[1672820082185,417.87436106,13.995,13.994,134.753]
[1672820082380,468.48089791,13.995,13.994,134.753]
[1672820083659,479.96697879,13.995,13.994,134.753]
[1672820083847,429.36044194,13.995,13.994,134.753]
[1672820084182,417.87436106,13.995,13.994,134.753]
[1672820084491,379.63225464,13.995,13.994,134.753]
[1672820084704,365.64,13.995,13.994,134.753]
[1672820085957,365.64,13.995,13.994,114.753]
[1672820086173,427.89636246,13.995,13.994,114.753]
[1672820086392,478.50289931,13.995,13.994,114.753]
[1672820086584,1.31018299,13.993,13.96,5.8]
[1672820086799,5.8,13.98,13.967,21.3874078]
[1672820087003,23.2,13.99,13.967,21.3874078]
[1672820087004,51.87900936,13.987,13.967,21.3874078]
[1672820087214,51.87900936,13.985,13.967,21.3874078]
[1672820087424,29.05,13.99,13.967,21.3874078]
[1672820087425,51.87900936,13.983,13.967,21.3874078]
[1672820087867,51.87900936,13.988,13.968,30.0]
[1672820088082,5.8,13.98,13.968,30.0]
[1672820088394,29.0,13.98,13.966,21.3874078]
[1672820088601,29.0,13.98,13.95,28.96]
[1672820088602,105.57900936,13.979,13.967,20.0]
[1672820088811,105.57900936,13.979,13.958,50.95478666]
[1672820089140,105.57900936,13.979,13.96,30.0]
[1672820089562,105.57900936,13.979,13.961,21.3874078]
[1672820089751,312.0,13.968,13.961,21.3874078]
[1672820089965,312.0,13.968,13.962,30.0]
[1672820090297,312.0,13.968,13.963,21.3874078]
[1672820090702,51.87900936,13.978,13.964,36.29345333]
[1672820091119,51.87900936,13.978,13.965,50.0]
[1672820091537,5.8,13.98,13.965,50.0]
[1672820091962,28.99,13.98,13.965,50.0]
[1672820092175,53.7,13.979,13.957,13.563656]
[1672820092385,53.7,13.979,13.959,30.0]
[1672820093442,53.7,13.979,13.96,21.3874078]
[1672820093768,312.0,13.961,13.96,21.3874078]
[1672820093958,312.0,13.961,13.959,30.0]
[1672820094797,53.72,13.975,13.959,30.0]
[1672820095015,53.7,13.979,13.959,30.0]
[1672820095846,53.7,13.979,13.96,21.3874078]
[1672820096061,53.7,13.979,13.96,51.3874078]
[1672820096492,53.7,13.979,13.961,20.0]
[1672820098380,312.0,13.962,13.961,20.0]
[1672820098702,53.7,13.979,13.961,20.0]
[1672820099115,53.68,13.983,13.964,311.32331241]
[1672820099326,53.66,13.989,13.964,311.32331241]
[1672820099538,53.66,13.989,13.965,41.3874078]
[1672820099954,53.66,13.989,13.966,21.3874078]
[1672820100280,53.66,13.989,13.967,20.0]
[1672820100803,53.66,13.989,13.968,21.3874078]
[1672820101205,53.66,13.989,13.969,20.0]
[1672820101622,312.0,13.978,13.97,21.3874078]
[1672820102046,312.0,13.978,13.971,20.0]
[1672820102477,53.66,13.989,13.972,21.3874078]
[1672820102689,53.66,13.989,13.973,20.0]
[1672820104156,53.66,13.989,13.968,20.0]
[1672820104367,53.66,13.989,13.969,30.0]
[1672820104575,53.66,13.989,13.97,20.0]
[1672820104576,105.03884951,13.989,13.97,20.0]
[1672820104796,5.74,13.98,13.97,20.0]
[1672820105001,53.7,13.979,13.97,20.0]
[1672820105529,312.0,13.971,13.97,20.0]
[1672820105746,312.0,13.971,13.965,20.0]
[1672820106146,312.0,13.971,13.95,5.77]
[1672820106147,5.8,13.97,13.95,5.77]
[1672820106357,5.8,13.97,13.943,68.7695174]
[1672820106358,53.74,13.969,13.943,68.7695174]
[1672820106783,53.74,13.969,13.95,5.8]
[1672820107206,53.71,13.976,13.95,5.8]
[1672820107431,5.74,13.97,13.95,5.8]
[1672820107628,53.74,13.969,13.95,5.8]
[1672820108051,53.72,13.975,13.965,20.0]
[1672820108464,53.7,13.979,13.965,20.0]
[1672820109529,312.0,13.966,13.965,20.0]
[1672820111413,365.75,13.966,13.965,20.0]
[1672820111839,365.75,13.966,13.943,68.7695174]
[1672820112067,53.75,13.965,13.943,68.7695174]
[1672820112267,53.74,13.969,13.943,68.7695174]
[1672820113116,115.09283951,13.969,13.943,68.7695174]
[1672820113955,115.09283951,13.969,13.965,20.0]
[1672820115204,312.0,13.966,13.965,20.0]
[1672820117089,501.6485612,13.966,13.965,20.0]
[1672820117299,555.3985612,13.966,13.965,20.0]
[1672820118367,555.3985612,13.966,13.943,68.7695174]
[1672820118576,53.75,13.965,13.943,68.7695174]
[1672820118890,243.3985612,13.965,13.943,68.7695174]
[1672820119105,293.03365186,13.965,13.943,68.7695174]
[1672820120562,243.3985612,13.965,13.943,68.7695174]
[1672820121205,291.63571852,13.965,13.943,68.7695174]
[1672820121620,603.63571852,13.965,13.943,88.7695174]
[1672820122473,555.3985612,13.965,13.943,88.7695174]
[1672820125074,615.89481666,13.965,13.964,64.29774438]
[1672820125303,56.25936669,13.963,13.943,88.7695174]
[1672820125504,13.12923147,13.961,13.958,20.0]
[1672820125718,53.77,13.96,13.958,20.0]
[1672820125928,115.51444844,13.96,13.958,20.0]
[1672820126256,169.29444844,13.959,13.958,20.0]
[1672820126659,216.66147243,13.959,13.943,68.7695174]
[1672820127086,114.9444331,13.958,13.943,68.7695174]
[1672820127404,216.09145709,13.958,13.943,68.7695174]
[1672820127617,13.563656,13.957,13.943,68.7695174]
[1672820127829,13.563656,13.957,13.945,30.0]
[1672820127830,13.563656,13.947,13.945,30.0]
[1672820128031,53.83,13.946,13.943,68.7695174]
[1672820128240,53.83,13.946,13.92,54.9590815]
[1672820128241,68.7695174,13.935,13.92,31.53807119]
[1672820128449,68.7695174,13.935,13.878,263.3478917]
[1672820128450,323.76488555,13.92,13.871,121.69896575]
[1672820128777,29.75830661,13.919,13.88,23.23]
[1672820128983,29.75830661,13.919,13.89,116.75]
[1672820129202,29.75830661,13.919,13.908,21.3874078]
[1672820129511,23.37,13.92,13.906,122.54189522]
[1672820129711,23.37,13.92,13.909,76.60856189]
[1672820129915,116.89,13.92,13.89,23.5]
[1672820130130,116.89,13.92,13.88,116.97]
[1672820130131,15.09450517,13.919,13.88,116.97]
[1672820130346,15.09450517,13.919,13.871,38.9257126]
[1672820130347,15.09450517,13.919,13.89,116.86]
[1672820130551,123.55663075,13.927,13.91,23.34]
[1672820130874,123.55663075,13.927,13.906,67.47544062]
[1672820131087,123.55663075,13.927,13.911,67.47544062]
[1672820131710,123.55663075,13.927,13.912,20.0]
[1672820132133,123.55663075,13.927,13.913,67.47544062]
[1672820132334,123.55663075,13.927,13.914,20.0]
[1672820132546,312.0,13.916,13.912,20.0]